fUST/lending_fUST_20250909
["ID","MTS","AMOUNT","RATE_DAILY","PERIOD"]
[384469413,1757429448079,-480.0,0.00013698,2]
[384469415,1757429448088,-480.0,0.00013698,2]
[384469417,1757429448097,-747.45,0.00013698,2]
[384469419,1757429448106,-480.0,0.00013698,2]
[384469421,1757429448115,-340.53,0.00013698,2]
[384469423,1757429448124,-480.0,0.00013698,2]
[384469425,1757429448134,-480.0,0.00013698,2]
[384469427,1757429448144,-485.66613818,0.00013698,2]
[384469429,1757429448153,-537.9,0.00013698,2]
[384469431,1757429448163,-480.0,0.00013698,2]
[384469433,1757429448173,-963.87,0.00013698,2]
[384469435,1757429448183,-480.0,0.00013698,2]
[384469437,1757429448195,-480.0,0.00013698,2]
[384469439,1757429448204,-480.0,0.00013698,2]
[384469441,1757429448214,-480.0,0.00013698,2]
[384469443,1757429448227,-719.65,0.00013698,2]
[384469445,1757429448236,-480.0,0.00013698,2]
[384469447,1757429448246,-480.0,0.00013698,2]
[384469449,1757429448257,-151.0,0.00013698,2]
[384469451,1757429448266,-480.0,0.00013698,2]
[384469453,1757429448276,-480.0,0.00013698,2]
[384469455,1757429448285,-480.0,0.00013698,2]
[384469457,1757429448295,-456.21957318,0.00013698,2]
[384469459,1757429448304,-4006.36,0.00013698,2]
[384469461,1757429448314,-507.62,0.00013698,2]
[384469463,1757429448323,-909.71,0.00013698,2]
[384469465,1757429448334,-739.46,0.00013698,2]
[384469467,1757429448344,-500.0,0.00013698,2]
[384469469,1757429448353,-500.0,0.00013698,2]
[384469471,1757429448362,-207.75792962,0.00013698,2]
[384469473,1757429448372,-3764.8,0.00013698,2]
[384469475,1757429448381,-500.0,0.00013698,2]
[384469477,1757429448391,-500.0,0.00013698,2]
[384469479,1757429448400,-480.0,0.00013698,2]
[384469481,1757429448410,-500.0,0.00013698,2]
[384469483,1757429448419,-500.0,0.00013698,2]
[384469485,1757429448428,-480.0,0.00013698,2]
[384469487,1757429448438,-480.0,0.00013698,2]
[384469489,1757429448447,-500.0,0.00013698,2]
[384469491,1757429448457,-500.0,0.00013698,2]
[384469493,1757429448467,-500.0,0.00013698,2]
[384469495,1757429448477,-965.93,0.00013698,2]
[384469497,1757429448486,-500.0,0.00013698,2]
[384469499,1757429448495,-500.0,0.00013698,2]
[384469501,1757429448505,-500.0,0.00013698,2]
[384469503,1757429448514,-500.0,0.00013698,2]
[384469504,1757429448524,-500.0,0.00013698,2]
[384469507,1757429448534,-182.851586,0.00013699,2]
[384469523,1757429448543,-993.136462,0.00013699,2]
[384469525,1757429448686,-500.0,0.00013708,2]
[384469527,1757429448696,-1830.2208045,0.00013709,2]
[384469529,1757429448706,-7769.7674971,0.00013709,2]
[384469531,1757429448715,-9669.85019614,0.00013709,2]
[384470628,1757429555856,500.0,0.00025,30]
[384470629,1757429555883,500.90375117,0.00025,30]
[384470640,1757430138321,250.0,0.0001337,2]
[384470661,1757430318214,160.0,0.00025,30]
[384470662,1757430318759,160.0,0.00025,30]
[384470663,1757430319328,160.0,0.00025,30]
[384470664,1757430340369,160.0,0.000273,120]
[384470665,1757430346148,160.0,0.000273,120]
[384470666,1757430346656,160.0,0.000273,120]
[384470667,1757430347165,160.0,0.000273,120]
[384470668,1757430347644,160.0,0.000273,120]
[384470670,1757430355062,160.0,0.00025,30]
[384470672,1757430358953,160.0,0.00025,30]
[384470674,1757430369959,160.0,0.000273,120]
[384470675,1757430370861,160.0,0.000273,120]
[384470677,1757430382926,160.0,0.000273,120]
[384470678,1757430393650,159.0,0.000273,120]
[384470681,1757430417361,159.0,0.000133,2]
[384470682,1757430417970,159.0,0.000133,2]
[384470683,1757430418990,159.0,0.000133,2]
[384470684,1757430427908,159.0,0.000133,2]
[384470685,1757430436631,158.0,0.000133,3]
[384470828,1757430632279,-274.31180953,0.00013596,2]
[384471438,1757430638466,-500.4380789,0.00013596,2]
[384471441,1757430638478,-724.45182357,0.00013596,2]
[384471443,1757430638487,-0.43807692,0.00013597,2]
[384471445,1757430638498,-299.56192308,0.00013597,2]
[384471447,1757430638507,-200.43807692,0.00013598,2]
[384471449,1757430638519,-15.24622889,0.00013598,2]
[384471451,1757430638528,-1175.81377111,0.00013598,2]
[384471611,1757430640618,151.80273,0.000245,30]
[384471634,1757430640836,1000.0,0.00027397,120]
[384471874,1757430643290,-276.23954486,0.00013598,2]
[384472169,1757430646304,-8659.99999996,0.00013598,2]
[384472170,1757430646315,-877.67347456,0.00013598,2]
[384472418,1757430653486,1017.01984857,0.00027397,120]
[384472808,1757430957668,560.0,0.0002739,120]
[384472820,1757431492594,2000.0,0.0002739,120]
[384472821,1757431504573,2000.0,0.0002739,120]
[384472843,1757431514264,2000.0,0.0002739,120]
[384472846,1757431523162,2000.0,0.0002739,120]
[384472850,1757431540156,1000.0,0.0002739,120]
[384472851,1757431547672,1015.0,0.0002739,120]
[384472915,1757431832553,-848.49515057,0.00013534,2]
[384472921,1757431832603,-78.28603357,0.00013534,2]
[384472923,1757431832612,-172.54744464,0.00013579,2]
[384472925,1757431832622,-300.0,0.00013597,2]
[384472927,1757431832632,-600.60825631,0.00013598,2]
[384472929,1757431832641,-75.47606431,0.00013598,2]
[384472931,1757431832653,-728.35970406,0.00013598,2]
[384472933,1757431832664,-72545.94570831,0.00013598,2]
[384472936,1757431832674,-172.54744462,0.00013634,2]
[384472939,1757431832683,-232.7535223,0.00013674,2]
[384472942,1757431832692,-500.0,0.00013674,2]
[384472945,1757431832702,-500.0,0.00013674,2]
[384472947,1757431832711,-500.0,0.00013674,2]
[384472949,1757431832720,-501.90046949,0.00013674,2]
[384472951,1757431832730,-500.0,0.00013674,2]
[384472953,1757431832740,-530.01922311,0.00013674,2]
[384472955,1757431832749,-247.33940078,0.00013674,2]
[384472957,1757431832759,-500.0,0.00013674,2]
[384472959,1757431832768,-500.0,0.00013674,2]
[384472961,1757431832777,-500.0,0.00013674,2]
[384472963,1757431832786,-500.0,0.00013674,2]
[384472965,1757431832796,-500.0,0.00013674,2]
[384472967,1757431832805,-500.0,0.00013674,2]
[384472969,1757431832814,-500.0,0.00013674,2]
[384472971,1757431832824,-500.0,0.00013674,2]
[384472973,1757431832833,-86.19394614,0.00013674,2]
[384472975,1757431832845,-413.80605386,0.00013674,2]
[384472977,1757431832854,-500.0,0.00013674,2]
[384472979,1757431832863,-392.89697601,0.00013674,2]
[384472981,1757431832872,-493.41074886,0.00013674,2]
[384473305,1757431838481,-6.58925114,0.00013674,2]
[384473306,1757431838491,-500.0,0.00013674,2]
[384473307,1757431838500,-500.0,0.00013674,2]
[384473308,1757431838510,-89.36313353,0.00013674,2]
[384473309,1757431838522,-345.15354498,0.00013674,2]
[384473310,1757431838534,-65.48332149,0.00013674,2]
[384473311,1757431838545,-500.0,0.00013674,2]
[384473312,1757431838555,-500.0,0.00013674,2]
[384473313,1757431838566,-156.91302399,0.00013674,2]
[384473314,1757431838578,-343.08697601,0.00013674,2]
[384473315,1757431838587,-500.0,0.00013674,2]
[384473316,1757431838596,-366.32822389,0.00013674,2]
[384473317,1757431838606,-16742.1397581,0.00013679,2]
[384473318,1757431838615,-12243.6797425,0.00013679,2]
[384473319,1757431838626,-172.54744462,0.0001369,2]
[384473320,1757431838635,-480.0,0.00013698,2]
[384473321,1757431838645,-480.0,0.00013698,2]
[384473322,1757431838654,-480.0,0.00013698,2]
[384473323,1757431838664,-480.0,0.00013698,2]
[384473324,1757431838673,-481.18102115,0.00013698,2]
[384473325,1757431838682,-208.34710857,0.00013698,2]
[384473326,1757431838691,-480.0,0.00013698,2]
[384473327,1757431838701,-480.0,0.00013698,2]
[384473328,1757431838710,-480.0,0.00013698,2]
[384473329,1757431838720,-151.0,0.00013698,2]
[384473330,1757431838729,-151.0,0.00013698,2]
[384473331,1757431838738,-151.0,0.00013698,2]
[384473332,1757431838747,-151.0,0.00013698,2]
[384473333,1757431838757,-151.0,0.00013698,2]
[384473334,1757431838767,-151.0,0.00013698,2]
[384473335,1757431838776,-153.990148,0.00013698,2]
[384473336,1757431838786,-480.0,0.00013698,2]
[384473337,1757431838796,-480.0,0.00013698,2]
[384473338,1757431838805,-481.38824484,0.00013698,2]
[384473339,1757431838815,-480.0,0.00013698,2]
[384473340,1757431838824,-483.5504906,0.00013698,2]
[384473341,1757431838986,-480.0,0.00013698,2]
[384473342,1757431838996,-480.0,0.00013698,2]
[384473343,1757431839006,-452.39401474,0.00013698,2]
[384473344,1757431839015,-480.0,0.00013698,2]
[384473345,1757431839025,-480.0,0.00013698,2]
[384473346,1757431839035,-480.0,0.00013698,2]
[384473347,1757431839044,-480.0,0.00013698,2]
[384473348,1757431839053,-480.0,0.00013698,2]
[384473349,1757431839062,-480.0,0.00013698,2]
[384473350,1757431839072,-480.0,0.00013698,2]
[384473351,1757431839081,-335.31639057,0.00013698,2]
[384473352,1757431839090,-480.0,0.00013698,2]
[384473353,1757431839104,-480.0,0.00013698,2]
[384473354,1757431839115,-480.0,0.00013698,2]
[384473355,1757431839123,-480.0,0.00013698,2]
[384473356,1757431839133,-480.0,0.00013698,2]
[384473357,1757431839144,-480.0,0.00013698,2]
[384473358,1757431839154,-525.10456097,0.00013698,2]
[384473359,1757431839163,-151.0,0.00013698,2]
[384473360,1757431839174,-480.0,0.00013698,2]
[384473361,1757431839183,-151.0,0.00013698,2]
[384473362,1757431839193,-191.9542,0.00013698,2]
[384473363,1757431839202,-480.0,0.00013698,2]
[384473364,1757431839212,-480.0,0.00013698,2]
[384473365,1757431839221,-480.0,0.00013698,2]
[384473366,1757431839230,-480.0,0.00013698,2]
[384473367,1757431839239,-454.23653039,0.00013698,2]
[384473368,1757431839248,-481.50904131,0.00013698,2]
[384473369,1757431839257,-480.0,0.00013698,2]
[384473370,1757431839266,-480.0,0.00013698,2]
[384473371,1757431839275,-480.0,0.00013698,2]
[384473372,1757431839285,-480.0,0.00013698,2]
[384473373,1757431839294,-480.0,0.00013698,2]
[384473374,1757431839303,-480.0,0.00013698,2]
[384473375,1757431839312,-480.0,0.00013698,2]
[384473376,1757431839321,-480.0,0.00013698,2]
[384473377,1757431839330,-480.0,0.00013698,2]
[384473378,1757431839339,-480.0,0.00013698,2]
[384473379,1757431839348,-452.32930918,0.00013698,2]
[384473380,1757431839363,-27.67069082,0.00013698,2]
[384473381,1757431839373,-480.0,0.00013698,2]
[384473382,1757431839381,-487.02045674,0.00013698,2]
[384473383,1757431839391,-133.81898256,0.00013698,2]
[384473384,1757431839404,-346.18101744,0.00013698,2]
[384473385,1757431839413,-480.0,0.00013698,2]
[384473386,1757431839423,-157.04768152,0.00013698,2]
[384473387,1757431839432,-157.0,0.00013698,2]
[384473388,1757431839442,-480.0,0.00013698,2]
[384473389,1757431839451,-480.0,0.00013698,2]
[384473390,1757431839461,-157.0,0.00013698,2]
[384473391,1757431839472,-262.66069,0.00013698,2]
[384473392,1757431839481,-157.0,0.00013698,2]
[384473393,1757431839491,-157.0,0.00013698,2]
[384473394,1757431839500,-157.0,0.00013698,2]
[384473395,1757431839509,-157.0,0.00013698,2]
[384473396,1757431839519,-305.21181664,0.00013698,2]
[384473397,1757431839529,-157.0,0.00013698,2]
[384473398,1757431839538,-157.0,0.00013698,2]
[384473399,1757431839548,-500.0,0.00013698,2]
[384473400,1757431839558,-157.0,0.00013698,2]
[384473401,1757431839568,-157.0,0.00013698,2]
[384473402,1757431839577,-480.0,0.00013698,2]
[384473403,1757431839586,-157.0,0.00013698,2]
[384473404,1757431839596,-480.0,0.00013698,2]
[384473405,1757431839606,-480.0,0.00013698,2]
[384473406,1757431839615,-480.0,0.00013698,2]
[384473407,1757431839624,-480.0,0.00013698,2]
[384473408,1757431839633,-480.0,0.00013698,2]
[384473409,1757431839643,-480.0,0.00013698,2]
[384473410,1757431839655,-480.0,0.00013698,2]
[384473411,1757431839665,-480.0,0.00013698,2]
[384473412,1757431839674,-480.0,0.00013698,2]
[384473413,1757431839684,-480.0,0.00013698,2]
[384473414,1757431839693,-480.0,0.00013698,2]
[384473415,1757431839702,-480.0,0.00013698,2]
[384473416,1757431839712,-480.0,0.00013698,2]
[384473417,1757431839722,-480.0,0.00013698,2]
[384473418,1757431839732,-480.0,0.00013698,2]
[384473419,1757431839742,-480.0,0.00013698,2]
[384473420,1757431839751,-480.0,0.00013698,2]
[384473421,1757431839761,-480.0,0.00013698,2]
[384473422,1757431839772,-151.0,0.00013698,2]
[384473423,1757431839782,-480.0,0.00013698,2]
[384473424,1757431839792,-351.37634893,0.00013698,2]
[384473425,1757431839802,-480.0,0.00013698,2]
[384473426,1757431839811,-734.68,0.00013698,2]
[384473427,1757431839821,-480.0,0.00013698,2]
[384473428,1757431839831,-480.0,0.00013698,2]
[384473429,1757431839841,-345.42149161,0.00013698,2]
[384473430,1757431839851,-480.0,0.00013698,2]
[384473432,1757431839860,-480.0,0.00013698,2]
[384473434,1757431839870,-151.0,0.00013698,2]
[384473435,1757431839879,-480.0,0.00013698,2]
[384473436,1757431839889,-480.0,0.00013698,2]
[384473437,1757431839898,-231.06,0.00013698,2]
[384473438,1757431839911,-151.0,0.00013698,2]
[384473439,1757431839920,-480.0,0.00013698,2]
[384473441,1757431839931,-480.0,0.00013698,2]
[384473443,1757431839941,-480.0,0.00013698,2]
[384473445,1757431839951,-480.0,0.00013698,2]
[384473446,1757431839960,-480.0,0.00013698,2]
[384473447,1757431839969,-480.0,0.00013698,2]
[384473448,1757431839979,-480.0,0.00013698,2]
[384473449,1757431839989,-474.91383403,0.00013698,2]
[384473451,1757431839998,-480.0,0.00013698,2]
[384473452,1757431840007,-480.0,0.00013698,2]
[384473453,1757431840016,-480.0,0.00013698,2]
[384473454,1757431840026,-480.0,0.00013698,2]
[384473455,1757431840035,-480.0,0.00013698,2]
[384473456,1757431840044,-484.04014659,0.00013698,2]
[384473457,1757431840054,-480.0,0.00013698,2]
[384473458,1757431840063,-480.0,0.00013698,2]
[384473459,1757431840073,-480.0,0.00013698,2]
[384473460,1757431840083,-480.0,0.00013698,2]
[384473461,1757431840094,-480.0,0.00013698,2]
[384473462,1757431840109,-481.22094941,0.00013698,2]
[384473463,1757431840119,-480.0,0.00013698,2]
[384473464,1757431840128,-360.43,0.00013698,2]
[384473465,1757431840139,-480.0,0.00013698,2]
[384473466,1757431840149,-480.0,0.00013698,2]
[384473467,1757431840161,-480.0,0.00013698,2]
[384473468,1757431840171,-480.0,0.00013698,2]
[384473469,1757431840181,-480.0,0.00013698,2]
[384473470,1757431840191,-480.0,0.00013698,2]
[384473472,1757431840201,-908.65,0.00013698,2]
[384473474,1757431840210,-256.30364827,0.00013698,2]
[384473476,1757431840226,-223.69635173,0.00013698,2]
[384473478,1757431840235,-246.32983624,0.00013698,2]
[384473488,1757431840880,-284.58016376,0.00013698,2]
[384473489,1757431840891,-480.0,0.00013698,2]
[384473490,1757431840901,-480.0,0.00013698,2]
[384473491,1757431840910,-480.0,0.00013698,2]
[384473492,1757431840920,-141.07909133,0.00013698,2]
[384473493,1757431840933,-86.29405367,0.00013698,2]
[384473494,1757431840943,-227.373145,0.00013698,2]
[384473495,1757431840952,-227.373145,0.00013698,2]
[384473496,1757431840961,-227.373145,0.00013698,2]
[384473497,1757431840971,-102.19882473,0.00013698,2]
[384473498,1757431840982,-125.17432027,0.00013698,2]
[384473499,1757431840991,-227.373145,0.00013698,2]
[384473500,1757431841001,-224.51463705,0.00013698,2]
[384473501,1757431841012,-2.85850795,0.00013698,2]
[384473502,1757431841021,-227.373145,0.00013698,2]
[384473503,1757431841031,-227.373145,0.00013698,2]
[384473504,1757431841040,-227.373145,0.00013698,2]
[384473505,1757431841050,-227.373145,0.00013698,2]
[384473506,1757431841060,-480.0,0.00013698,2]
[384473507,1757431841073,-227.373145,0.00013698,2]
[384473508,1757431841082,-227.373145,0.00013698,2]
[384473509,1757431841092,-227.373145,0.00013698,2]
[384473510,1757431841105,-227.373145,0.00013698,2]
[384473511,1757431841113,-227.373145,0.00013698,2]
[384473512,1757431841123,-227.373145,0.00013698,2]
[384473513,1757431841132,-227.373145,0.00013698,2]
[384473514,1757431841142,-227.373145,0.00013698,2]
[384473515,1757431841151,-480.0,0.00013698,2]
[384473516,1757431841161,-227.373152,0.00013698,2]
[384473517,1757431841170,-480.0,0.00013698,2]
[384473518,1757431841180,-922.98,0.00013698,2]
[384473519,1757431841189,-480.0,0.00013698,2]
[384473520,1757431841198,-480.0,0.00013698,2]
[384473521,1757431841207,-480.0,0.00013698,2]
[384473522,1757431841217,-480.0,0.00013698,2]
[384473523,1757431841226,-500.0,0.00013698,2]
[384473524,1757431841235,-500.0,0.00013698,2]
[384473525,1757431841245,-500.0,0.00013698,2]
[384473526,1757431841254,-500.0,0.00013698,2]
[384473527,1757431841262,-501.6316782,0.00013698,2]
[384473528,1757431841271,-480.0,0.00013698,2]
[384473529,1757431841280,-480.0,0.00013698,2]
[384473530,1757431841289,-47.67892185,0.00013698,2]
[384473531,1757431841301,-432.32107815,0.00013698,2]
[384473532,1757431841310,-185.54164219,0.00013698,2]
[384473533,1757431841321,-646.67835781,0.00013698,2]
[384473534,1757431841330,-480.0,0.00013698,2]
[384473535,1757431841339,-71.51317453,0.00013698,2]
[384473536,1757431841350,-374.6559393,0.00013698,2]
[384473537,1757431841361,-33.83088617,0.00013698,2]
[384473538,1757431841370,-405.77697043,0.00013698,2]
[384473539,1757431841380,-480.0,0.00013698,2]
[384473540,1757431841388,-480.0,0.00013698,2]
[384473541,1757431841398,-480.0,0.00013698,2]
[384473542,1757431841408,-828.57,0.00013698,2]
[384473543,1757431841417,-480.0,0.00013698,2]
[384473544,1757431841426,-480.0,0.00013698,2]
[384473545,1757431841435,-480.0,0.00013698,2]
[384473546,1757431841444,-480.0,0.00013698,2]
[384473547,1757431841453,-609.24,0.00013698,2]
[384473548,1757431841462,-450.83637887,0.00013698,2]
[384473549,1757431841474,-29.16362113,0.00013698,2]
[384473550,1757431841483,-480.0,0.00013698,2]
[384473551,1757431841492,-480.0,0.00013698,2]
[384473552,1757431841501,-480.0,0.00013698,2]
[384473553,1757431841509,-480.0,0.00013698,2]
[384473554,1757431841518,-1342.47,0.00013698,2]
[384473555,1757431841527,-480.0,0.00013698,2]
[384473556,1757431841537,-549.07,0.00013698,2]
[384473557,1757431841546,-480.0,0.00013698,2]
[384473558,1757431841555,-480.0,0.00013698,2]
[384473559,1757431841564,-480.0,0.00013698,2]
[384473560,1757431841574,-480.0,0.00013698,2]
[384473561,1757431841583,-480.0,0.00013698,2]
[384473562,1757431841591,-480.0,0.00013698,2]
[384473563,1757431841601,-403.10823709,0.00013698,2]
[384473623,1757431843993,-399.91176291,0.00013698,2]
[384473625,1757431844003,-480.0,0.00013698,2]
[384473627,1757431844013,-480.0,0.00013698,2]
[384473629,1757431844022,-480.0,0.00013698,2]
[384473631,1757431844032,-480.0,0.00013698,2]
[384473633,1757431844041,-480.0,0.00013698,2]
[384473635,1757431844052,-480.0,0.00013698,2]
[384473638,1757431844061,-480.0,0.00013698,2]
[384473640,1757431844070,-705.63,0.00013698,2]
[384473642,1757431844080,-480.0,0.00013698,2]
[384473644,1757431844089,-500.0,0.00013698,2]
[384473646,1757431844103,-500.0,0.00013698,2]
[384473648,1757431844112,-500.0,0.00013698,2]
[384473650,1757431844121,-500.0,0.00013698,2]
[384473652,1757431844131,-176.77,0.00013698,2]
[384473655,1757431844141,-480.0,0.00013698,2]
[384473657,1757431844151,-602.66,0.00013698,2]
[384473660,1757431844161,-480.0,0.00013698,2]
[384473662,1757431844171,-480.0,0.00013698,2]
[384473664,1757431844180,-708.66,0.00013698,2]
[384473666,1757431844191,-480.0,0.00013698,2]
[384473668,1757431844201,-1669.64,0.00013698,2]
[384473670,1757431844210,-480.0,0.00013698,2]
[384473672,1757431844219,-480.0,0.00013698,2]
[384473674,1757431844228,-480.0,0.00013698,2]
[384473676,1757431844237,-480.0,0.00013698,2]
[384473678,1757431844247,-480.0,0.00013698,2]
[384473680,1757431844257,-480.0,0.00013698,2]
[384473682,1757431844266,-480.0,0.00013698,2]
[384473683,1757431844276,-480.0,0.00013698,2]
[384473686,1757431844286,-480.0,0.00013698,2]
[384473687,1757431844295,-480.0,0.00013698,2]
[384473689,1757431844304,-162.64904436,0.00013698,2]
[384473691,1757431844314,-722.6,0.00013698,2]
[384473693,1757431844323,-480.0,0.00013698,2]
[384473695,1757431844332,-198.2,0.00013698,2]
[384473697,1757431844342,-480.0,0.00013698,2]
[384473699,1757431844351,-496.64,0.00013698,2]
[384473701,1757431844361,-480.0,0.00013698,2]
[384473703,1757431844370,-151.0,0.00013698,2]
[384473705,1757431844379,-151.0,0.00013698,2]
[384473707,1757431844388,-151.0,0.00013698,2]
[384473709,1757431844397,-151.0,0.00013698,2]
[384473711,1757431844408,-151.0,0.00013698,2]
[384473713,1757431844418,-151.0,0.00013698,2]
[384473715,1757431844427,-480.0,0.00013698,2]
[384473717,1757431844436,-151.0,0.00013698,2]
[384473719,1757431844445,-151.0,0.00013698,2]
[384473721,1757431844455,-480.0,0.00013698,2]
[384473723,1757431844464,-151.0,0.00013698,2]
[384473725,1757431844473,-151.0,0.00013698,2]
[384473727,1757431844482,-151.0,0.00013698,2]
[384473729,1757431844492,-151.0,0.00013698,2]
[384473731,1757431844501,-480.0,0.00013698,2]
[384473733,1757431844510,-480.0,0.00013698,2]
[384473735,1757431844520,-480.0,0.00013698,2]
[384473737,1757431844529,-151.0,0.00013698,2]
[384473739,1757431844538,-151.0,0.00013698,2]
[384473741,1757431844548,-151.0,0.00013698,2]
[384473743,1757431844558,-151.0,0.00013698,2]
[384473745,1757431844568,-151.0,0.00013698,2]
[384473747,1757431844578,-151.0,0.00013698,2]
[384473749,1757431844587,-480.0,0.00013698,2]
[384473751,1757431844597,-151.0,0.00013698,2]
[384473753,1757431844606,-481.84044152,0.00013698,2]
[384473754,1757431844616,-480.0,0.00013698,2]
[384473756,1757431844626,-480.0,0.00013698,2]
[384473758,1757431844636,-708.65,0.00013698,2]
[384473760,1757431844645,-1643.02,0.00013698,2]
[384473762,1757431844654,-480.0,0.00013698,2]
[384473764,1757431844665,-1236.84,0.00013698,2]
[384473766,1757431844673,-480.0,0.00013698,2]
[384473768,1757431844683,-480.0,0.00013698,2]
[384473770,1757431844692,-480.0,0.00013698,2]
[384473772,1757431844701,-480.0,0.00013698,2]
[384473774,1757431844711,-480.0,0.00013698,2]
[384473776,1757431844720,-480.0,0.00013698,2]
[384473778,1757431844730,-1620.48,0.00013698,2]
[384473780,1757431844740,-480.0,0.00013698,2]
[384473782,1757431844750,-541.74648561,0.00013698,2]
[384473784,1757431844758,-480.0,0.00013698,2]
[384473786,1757431844767,-653.35,0.00013698,2]
[384473788,1757431844777,-480.0,0.00013698,2]
[384473790,1757431844785,-480.0,0.00013698,2]
[384473792,1757431844795,-480.0,0.00013698,2]
[384473794,1757431844804,-482.06700503,0.00013698,2]
[384473796,1757431844814,-523.28,0.00013698,2]
[384473798,1757431844824,-151.0,0.00013698,2]
[384473800,1757431844834,-480.0,0.00013698,2]
[384473802,1757431844844,-480.0,0.00013698,2]
[384473804,1757431844853,-480.0,0.00013698,2]
[384473806,1757431844862,-480.0,0.00013698,2]
[384473808,1757431844872,-480.0,0.00013698,2]
[384473810,1757431844881,-480.0,0.00013698,2]
[384473812,1757431844891,-265.74453646,0.00013698,2]
[384473814,1757431844911,-330.19269648,0.00013698,2]
[384473816,1757431844922,-1918.51276706,0.00013698,2]
[384473818,1757431844931,-418.4205918,0.00013698,2]
[384473820,1757431844941,-480.0,0.00013698,2]
[384473822,1757431844951,-274.26208804,0.00013698,2]
[384473824,1757431844961,-480.0,0.00013698,2]
[384473826,1757431844971,-480.0,0.00013698,2]
[384473828,1757431844981,-480.0,0.00013698,2]
[384473830,1757431844991,-480.0,0.00013698,2]
[384473833,1757431845002,-2287.08,0.00013698,2]
[384473834,1757431845011,-17632.31306983,0.00013698,2]
[384473982,1757431846563,-392.22435812,0.00013673,2]
[384473985,1757431846574,-262.92535821,0.00013673,2]
[384473987,1757431846585,-500.0,0.00013673,2]
[384473989,1757431846596,-947.2026232,0.00013698,2]
[384473992,1757431846609,-5854.14430697,0.00013698,2]
[384473994,1757431846620,-480.0,0.00013698,2]
[384473996,1757431846631,-480.0,0.00013698,2]
[384473998,1757431846642,-792.34,0.00013698,2]
[384474000,1757431846652,-375.14448865,0.00013698,2]
[384474006,1757431846693,-192.77551135,0.00013698,2]
[384474008,1757431846704,-127.38596222,0.00013698,2]
[384474283,1757432120099,5814.61350773,0.00013297,2]
[384474288,1757432334384,341.1,0.00012329,2]
[384474289,1757432345067,284.25,0.00012329,2]
[384474290,1757432355774,236.87,0.00012329,2]
[384474292,1757432366258,197.39,0.00012329,2]
[384474293,1757432376756,164.5,0.00012329,2]
[384474294,1757432383457,810.93353614,0.00013373,2]
[384474295,1757432387311,822.5,0.00012329,2]
[384474355,1757432574761,1043.0,0.00013337,2]
[384474356,1757432582060,915.53,0.00012329,2]
[384474357,1757432582846,1043.0,0.00013337,2]
[384474358,1757432591426,743.0,0.00013337,2]
[384474359,1757432592569,762.95,0.00012329,2]
[384474360,1757432599838,743.0,0.00013337,2]
[384474361,1757432602992,635.79,0.00012329,2]
[384474362,1757432603819,4990.68,0.00025,30]
[384474363,1757432608643,743.0,0.00013337,2]